fUSD/lending_fUSD_20260520
["ID","MTS","AMOUNT","RATE_DAILY","PERIOD"]
[422667992,1779226240000,-966.33,0.00013698,2]
[422667961,1779226240000,-500.0,0.00013698,2]
[422667957,1779226240000,-500.0,0.00013698,2]
[422667987,1779226240000,-349.78123329,0.00013698,2]
[422667967,1779226240000,-500.0,0.00013698,2]
[422667959,1779226240000,-500.0,0.00013698,2]
[422667941,1779226240000,-500.0,0.00013698,2]
[422667934,1779226240000,-500.0,0.00013698,2]
[422667933,1779226240000,-500.0,0.00013698,2]
[422667939,1779226240000,-500.0,0.00013698,2]
[422667932,1779226240000,-500.0,0.00013698,2]
[422667942,1779226240000,-500.0,0.00013698,2]
[422667935,1779226240000,-512.8400443,0.00013698,2]
[422667938,1779226240000,-500.0,0.00013698,2]
[422667936,1779226240000,-371.97687373,0.00013698,2]
[422667940,1779226240000,-500.0,0.00013698,2]
[422667943,1779226240000,-500.0,0.00013698,2]
[422667950,1779226240000,-500.0,0.00013698,2]
[422667953,1779226240000,-500.0,0.00013698,2]
[422667921,1779226240000,-500.0,0.00013698,2]
[422667945,1779226240000,-500.0,0.00013698,2]
[422667946,1779226240000,-500.0,0.00013698,2]
[422667966,1779226240000,-500.0,0.00013698,2]
[422667956,1779226240000,-500.0,0.00013698,2]
[422667955,1779226240000,-500.0,0.00013698,2]
[422667963,1779226240000,-500.0,0.00013698,2]
[422667991,1779226240000,-966.33,0.00013698,2]
[422667964,1779226240000,-500.0,0.00013698,2]
[422667944,1779226240000,-500.0,0.00013698,2]
[422667948,1779226240000,-500.0,0.00013698,2]
[422667947,1779226240000,-500.0,0.00013698,2]
[422667954,1779226240000,-500.0,0.00013698,2]
[422667949,1779226240000,-500.0,0.00013698,2]
[422667951,1779226240000,-500.0,0.00013698,2]
[422668033,1779226241000,-2025.12,0.00013698,2]
[422668037,1779226241000,-2025.12,0.00013698,2]
[422668031,1779226241000,-2025.12,0.00013698,2]
[422668036,1779226241000,-500.0,0.00013698,2]
[422668024,1779226241000,-2025.12,0.00013698,2]
[422668030,1779226241000,-2025.12,0.00013698,2]
[422668026,1779226241000,-2025.12,0.00013698,2]
[422668021,1779226241000,-2025.12,0.00013698,2]
[422668022,1779226241000,-2025.12,0.00013698,2]
[422668032,1779226241000,-2025.12,0.00013698,2]
[422668034,1779226241000,-2025.12,0.00013698,2]
[422668053,1779226241000,-500.0,0.00013698,2]
[422668035,1779226241000,-2025.12,0.00013698,2]
[422668038,1779226241000,-500.0,0.00013698,2]
[422668039,1779226241000,-2025.2698039,0.00013698,2]
[422668040,1779226241000,-500.0,0.00013698,2]
[422668023,1779226241000,-2025.12,0.00013698,2]
[422668054,1779226241000,-500.0,0.00013698,2]
[422668047,1779226241000,-500.0,0.00013698,2]
[422668045,1779226241000,-500.0,0.00013698,2]
[422668042,1779226241000,-500.0,0.00013698,2]
[422668044,1779226241000,-500.0,0.00013698,2]
[422668049,1779226241000,-500.0,0.00013698,2]
[422668043,1779226241000,-500.0,0.00013698,2]
[422668048,1779226241000,-502.26457944,0.00013698,2]
[422668041,1779226241000,-209.51466794,0.00013698,2]
[422668025,1779226241000,-2025.12,0.00013698,2]
[422668014,1779226241000,-2025.12,0.00013698,2]
[422668018,1779226241000,-2025.12,0.00013698,2]
[422668046,1779226241000,-500.0,0.00013698,2]
[422668002,1779226241000,-966.33,0.00013698,2]
[422668003,1779226241000,-966.33,0.00013698,2]
[422667993,1779226241000,-966.33,0.00013698,2]
[422667998,1779226241000,-966.33,0.00013698,2]
[422667997,1779226241000,-966.33,0.00013698,2]
[422668001,1779226241000,-966.33,0.00013698,2]
[422668000,1779226241000,-966.33,0.00013698,2]
[422667995,1779226241000,-966.33,0.00013698,2]
[422667994,1779226241000,-966.33,0.00013698,2]
[422667996,1779226241000,-966.33,0.00013698,2]
[422667999,1779226241000,-966.33,0.00013698,2]
[422668019,1779226241000,-2025.12,0.00013698,2]
[422668006,1779226241000,-966.33,0.00013698,2]
[422668008,1779226241000,-966.33,0.00013698,2]
[422668005,1779226241000,-966.33,0.00013698,2]
[422668009,1779226241000,-966.33,0.00013698,2]
[422668010,1779226241000,-966.33,0.00013698,2]
[422668011,1779226241000,-966.37366133,0.00013698,2]
[422668012,1779226241000,-2025.12,0.00013698,2]
[422668015,1779226241000,-2025.12,0.00013698,2]
[422668013,1779226241000,-2025.12,0.00013698,2]
[422668029,1779226241000,-2025.12,0.00013698,2]
[422668016,1779226241000,-2025.12,0.00013698,2]
[422668027,1779226241000,-2025.12,0.00013698,2]
[422668028,1779226241000,-2025.12,0.00013698,2]
[422668004,1779226241000,-966.33,0.00013698,2]
[422668007,1779226241000,-966.33,0.00013698,2]
[422668050,1779226241000,-500.0,0.00013698,2]
[422668051,1779226241000,-500.0,0.00013698,2]
[422668089,1779226241000,-500.0,0.00013698,2]
[422668087,1779226241000,-500.0,0.00013698,2]
[422668086,1779226241000,-500.0,0.00013698,2]
[422668083,1779226241000,-500.0,0.00013698,2]
[422668085,1779226241000,-500.0,0.00013698,2]
[422668092,1779226241000,-500.0,0.00013698,2]
[422668091,1779226241000,-500.0,0.00013698,2]
[422668094,1779226241000,-500.0,0.00013698,2]
[422668093,1779226241000,-500.0,0.00013698,2]
[422668095,1779226241000,-500.0,0.00013698,2]
[422668098,1779226241000,-500.0,0.00013698,2]
[422668096,1779226241000,-500.0,0.00013698,2]
[422668088,1779226241000,-500.0,0.00013698,2]
[422668097,1779226241000,-500.0,0.00013698,2]
[422668108,1779226241000,-500.0,0.00013698,2]
[422668100,1779226241000,-500.0,0.00013698,2]
[422668106,1779226241000,-500.0,0.00013698,2]
[422668105,1779226241000,-500.0,0.00013698,2]
[422668101,1779226241000,-500.0,0.00013698,2]
[422668102,1779226241000,-500.0,0.00013698,2]
[422668110,1779226241000,-372.33547029,0.00013698,2]
[422668109,1779226241000,-500.0,0.00013698,2]
[422668107,1779226241000,-500.0,0.00013698,2]
[422668111,1779226241000,-500.0,0.00013698,2]
[422668104,1779226241000,-500.0,0.00013698,2]
[422668052,1779226241000,-500.0,0.00013698,2]
[422668103,1779226241000,-500.0,0.00013698,2]
[422668080,1779226241000,-500.0,0.00013698,2]
[422668099,1779226241000,-607.8008442,0.00013698,2]
[422668079,1779226241000,-500.0,0.00013698,2]
[422668055,1779226241000,-504.85547194,0.00013698,2]
[422668082,1779226241000,-500.0,0.00013698,2]
[422668058,1779226241000,-500.0,0.00013698,2]
[422668061,1779226241000,-500.0,0.00013698,2]
[422668060,1779226241000,-500.0,0.00013698,2]
[422668056,1779226241000,-500.0,0.00013698,2]
[422668065,1779226241000,-500.0,0.00013698,2]
[422668057,1779226241000,-500.0,0.00013698,2]
[422668062,1779226241000,-500.0,0.00013698,2]
[422668064,1779226241000,-500.0,0.00013698,2]
[422668063,1779226241000,-500.0,0.00013698,2]
[422668077,1779226241000,-500.0,0.00013698,2]
[422668068,1779226241000,-500.0,0.00013698,2]
[422668069,1779226241000,-500.0,0.00013698,2]
[422668059,1779226241000,-500.0,0.00013698,2]
[422668084,1779226241000,-500.0,0.00013698,2]
[422668078,1779226241000,-500.0,0.00013698,2]
[422668073,1779226241000,-500.0,0.00013698,2]
[422668081,1779226241000,-500.0,0.00013698,2]
[422668090,1779226241000,-500.0,0.00013698,2]
[422668074,1779226241000,-500.0,0.00013698,2]
[422668072,1779226241000,-508.97372054,0.00013698,2]
[422668071,1779226241000,-500.0,0.00013698,2]
[422668067,1779226241000,-500.0,0.00013698,2]
[422668076,1779226241000,-500.0,0.00013698,2]
[422668066,1779226241000,-500.0,0.00013698,2]
[422668075,1779226241000,-500.0,0.00013698,2]
[422668070,1779226241000,-500.0,0.00013698,2]
[422668153,1779226242000,-500.0,0.00013698,2]
[422668159,1779226242000,-414.8124978,0.00013698,2]
[422668160,1779226242000,-170.0,0.00013698,2]
[422668152,1779226242000,-500.0,0.00013698,2]
[422668155,1779226242000,-500.0,0.00013698,2]
[422668138,1779226242000,-500.0,0.00013698,2]
[422668151,1779226242000,-500.0,0.00013698,2]
[422668156,1779226242000,-500.0,0.00013698,2]
[422668144,1779226242000,-500.0,0.00013698,2]
[422668140,1779226242000,-500.0,0.00013698,2]
[422668157,1779226242000,-500.0,0.00013698,2]
[422668149,1779226242000,-500.0,0.00013698,2]
[422668150,1779226242000,-500.0,0.00013698,2]
[422668171,1779226242000,-500.0,0.00013698,2]
[422668158,1779226242000,-500.0,0.00013698,2]
[422668154,1779226242000,-500.0,0.00013698,2]
[422668161,1779226242000,-170.0,0.00013698,2]
[422668163,1779226242000,-174.36372684,0.00013698,2]
[422668162,1779226242000,-170.0,0.00013698,2]
[422668164,1779226242000,-500.0,0.00013698,2]
[422668165,1779226242000,-500.0,0.00013698,2]
[422668172,1779226242000,-500.0,0.00013698,2]
[422668168,1779226242000,-500.0,0.00013698,2]
[422668166,1779226242000,-500.0,0.00013698,2]
[422668170,1779226242000,-500.0,0.00013698,2]
[422668169,1779226242000,-500.0,0.00013698,2]
[422668145,1779226242000,-500.0,0.00013698,2]
[422668148,1779226242000,-500.0,0.00013698,2]
[422668147,1779226242000,-500.0,0.00013698,2]
[422668112,1779226242000,-500.0,0.00013698,2]
[422668137,1779226242000,-500.0,0.00013698,2]
[422668167,1779226242000,-500.0,0.00013698,2]
[422668117,1779226242000,-500.0,0.00013698,2]
[422668116,1779226242000,-500.0,0.00013698,2]
[422668114,1779226242000,-500.0,0.00013698,2]
[422668115,1779226242000,-500.0,0.00013698,2]
[422668122,1779226242000,-500.0,0.00013698,2]
[422668123,1779226242000,-500.0,0.00013698,2]
[422668119,1779226242000,-500.0,0.00013698,2]
[422668120,1779226242000,-500.0,0.00013698,2]
[422668118,1779226242000,-500.0,0.00013698,2]
[422668113,1779226242000,-500.0,0.00013698,2]
[422668121,1779226242000,-500.0,0.00013698,2]
[422668125,1779226242000,-500.0,0.00013698,2]
[422668146,1779226242000,-500.0,0.00013698,2]
[422668124,1779226242000,-500.0,0.00013698,2]
[422668128,1779226242000,-500.0,0.00013698,2]
[422668126,1779226242000,-500.0,0.00013698,2]
[422668129,1779226242000,-500.0,0.00013698,2]
[422668132,1779226242000,-500.0,0.00013698,2]
[422668131,1779226242000,-500.0,0.00013698,2]
[422668130,1779226242000,-500.0,0.00013698,2]
[422668133,1779226242000,-500.0,0.00013698,2]
[422668135,1779226242000,-500.0,0.00013698,2]
[422668139,1779226242000,-500.0,0.00013698,2]
[422668142,1779226242000,-500.0,0.00013698,2]
[422668141,1779226242000,-500.0,0.00013698,2]
[422668136,1779226242000,-500.0,0.00013698,2]
[422668143,1779226242000,-500.0,0.00013698,2]
[422668127,1779226242000,-500.0,0.00013698,2]
[422668174,1779226242000,-500.0,0.00013698,2]
[422668134,1779226242000,-500.0,0.00013698,2]
[422668184,1779226242000,-7264.1,0.00013699,2]
[422668203,1779226242000,-606.24,0.00013711,2]
[422668201,1779226242000,-150.0,0.00013702,2]
[422668210,1779226242000,-5300.09,0.00013722,2]
[422668202,1779226242000,-500.0,0.00013711,2]
[422668204,1779226242000,-500.0,0.00013711,2]
[422668217,1779226242000,-150.0,0.00013773,2]
[422668224,1779226242000,-150.0,0.00013809,2]
[422668213,1779226242000,-150.0,0.00013737,2]
[422668218,1779226242000,-155.22131517,0.00013775,2]
[422668222,1779226242000,-150.0,0.00013803,2]
[422668216,1779226242000,-500.0,0.0001377,2]
[422668215,1779226242000,-155.22131517,0.0001376,2]
[422668223,1779226242000,-155.22131517,0.00013806,2]
[422668205,1779226242000,-500.0,0.00013711,2]
[422668234,1779226242000,-500.0,0.00013847,2]
[422668221,1779226242000,-155.22131517,0.0001379,2]
[422668219,1779226242000,-150.0,0.00013776,2]
[422668220,1779226242000,-150.0,0.00013787,2]
[422668225,1779226242000,-150.0,0.00013809,2]
[422668233,1779226242000,-430.77473575,0.00013847,2]
[422668227,1779226242000,-155.22131517,0.00013821,2]
[422668235,1779226242000,-500.0,0.00013847,2]
[422668228,1779226242000,-150.0,0.00013834,2]
[422668230,1779226242000,-155.22131517,0.00013836,2]
[422668229,1779226242000,-166.66,0.00013836,2]
[422668231,1779226242000,-296.87312426,0.00013843,2]
[422668232,1779226242000,-150.0,0.00013844,2]
[422668185,1779226242000,-719.98,0.00013699,2]
[422668214,1779226242000,-155.22131517,0.00013745,2]
[422668207,1779226242000,-500.0,0.00013711,2]
[422668226,1779226242000,-150.0,0.00013821,2]
[422668199,1779226242000,-155.22131517,0.000137,2]
[422668212,1779226242000,-155.22131517,0.0001373,2]
[422668173,1779226242000,-500.0,0.00013698,2]
[422668177,1779226242000,-508.71985142,0.00013698,2]
[422668179,1779226242000,-500.0,0.00013698,2]
[422668178,1779226242000,-500.0,0.00013698,2]
[422668180,1779226242000,-500.0,0.00013698,2]
[422668183,1779226242000,-500.0,0.00013698,2]
[422668182,1779226242000,-500.0,0.00013698,2]
[422668181,1779226242000,-500.0,0.00013698,2]
[422668175,1779226242000,-500.0,0.00013698,2]
[422668176,1779226242000,-500.0,0.00013698,2]
[422668189,1779226242000,-153.75,0.00013699,2]
[422668188,1779226242000,-184.5,0.00013699,2]
[422668187,1779226242000,-221.4,0.00013699,2]
[422668186,1779226242000,-166.66,0.00013699,2]
[422668190,1779226242000,-768.78,0.00013699,2]
[422668194,1779226242000,-151.0,0.00013699,2]
[422668211,1779226242000,-150.0,0.00013724,2]
[422668209,1779226242000,-150.0,0.00013718,2]
[422668208,1779226242000,-155.22131517,0.00013715,2]
[422668206,1779226242000,-500.0,0.00013711,2]
[422668196,1779226242000,-151.0,0.00013699,2]
[422668200,1779226242000,-150.0,0.00013702,2]
[422668191,1779226242000,-200.0,0.00013699,2]
[422668193,1779226242000,-151.0,0.00013699,2]
[422668192,1779226242000,-2500.0,0.00013699,2]
[422668198,1779226242000,-151.0,0.00013699,2]
[422668197,1779226242000,-151.0,0.00013699,2]
[422668195,1779226242000,-151.0,0.00013699,2]
[422668289,1779226243000,-150.0,0.00014094,2]
[422668287,1779226243000,-155.22131517,0.00014093,2]
[422668279,1779226243000,-155.22131517,0.00014063,2]
[422668280,1779226243000,-150.0,0.00014064,2]
[422668267,1779226243000,-155.22131517,0.00014002,2]
[422668266,1779226243000,-250.0,0.00014,2]
[422668265,1779226243000,-530.30207749,0.00014,2]
[422668272,1779226243000,-150.0,0.00014023,2]
[422668281,1779226243000,-155.22131517,0.00014078,2]
[422668264,1779226243000,-2730.1767011,0.0001399,2]
[422668269,1779226243000,-155.22131517,0.00014017,2]
[422668274,1779226243000,-150.0,0.0001404,2]
[422668284,1779226243000,-150.0,0.00014087,2]
[422668277,1779226243000,-150.0,0.0001405,2]
[422668276,1779226243000,-155.22131517,0.00014048,2]
[422668293,1779226243000,-166.66,0.0001411,2]
[422668296,1779226243000,-150.0,0.00014119,2]
[422668278,1779226243000,-150.0,0.00014059,2]
[422668291,1779226243000,-155.22131517,0.00014108,2]
[422668311,1779226243000,-296.87312426,0.00014195,2]
[422668300,1779226243000,-150.0,0.0001413,2]
[422668308,1779226243000,-150.0,0.00014179,2]
[422668297,1779226243000,-150.0,0.00014122,2]
[422668301,1779226243000,-155.22131517,0.00014139,2]
[422668268,1779226243000,-150.0,0.00014006,2]
[422668298,1779226243000,-155.22131517,0.00014123,2]
[422668275,1779226243000,-500.0,0.00014044,2]
[422668271,1779226243000,-150.0,0.00014023,2]
[422668243,1779226243000,-20894.27234019,0.00013883,2]
[422668262,1779226243000,-150.0,0.00013987,2]
[422668302,1779226243000,-288.57,0.00014153,2]
[422668236,1779226243000,-155.22131517,0.00013851,2]
[422668237,1779226243000,-150.0,0.00013862,2]
[422668240,1779226243000,-150.0,0.0001388,2]
[422668239,1779226243000,-155.22131517,0.00013866,2]
[422668242,1779226243000,-150.0,0.00013882,2]
[422668238,1779226243000,-150.0,0.00013862,2]
[422668241,1779226243000,-155.22131517,0.00013881,2]
[422668244,1779226243000,-150.0,0.00013887,2]
[422668246,1779226243000,-155.22131517,0.00013896,2]
[422668249,1779226243000,-150.0,0.00013916,2]
[422668245,1779226243000,-150.0,0.00013891,2]
[422668263,1779226243000,-155.22131517,0.00013987,2]
[422668247,1779226243000,-1105.68,0.000139,2]
[422668251,1779226243000,-155.22131517,0.00013927,2]
[422668261,1779226243000,-150.0,0.00013987,2]
[422668250,1779226243000,-150.0,0.00013916,2]
[422668256,1779226243000,-150.0,0.00013961,2]
[422668257,1779226243000,-155.22131517,0.00013972,2]
[422668252,1779226243000,-155.22131517,0.00013942,2]
[422668253,1779226243000,-150.0,0.00013949,2]
[422668255,1779226243000,-155.22131517,0.00013957,2]
[422668258,1779226243000,-166.66,0.00013973,2]
[422668254,1779226243000,-150.0,0.00013952,2]
[422668259,1779226243000,-2000.0,0.00013985,2]
[422668273,1779226243000,-155.22131517,0.00014033,2]
[422668248,1779226243000,-155.22131517,0.00013912,2]
[422668305,1779226243000,-150.0,0.00014154,2]
[422668260,1779226243000,-150.0,0.00013987,2]
[422668299,1779226243000,-150.0,0.0001413,2]
[422668333,1779226243000,-150.0,0.00014308,2]
[422668350,1779226243000,-150.0,0.0001441,2]
[422668347,1779226243000,-150.0,0.00014387,2]
[422668343,1779226243000,-155.22131517,0.00014366,2]
[422668342,1779226243000,-150.0,0.00014355,2]
[422668340,1779226243000,-155.22131517,0.00014351,2]
[422668341,1779226243000,-150.0,0.00014352,2]
[422668344,1779226243000,-150.0,0.0001438,2]
[422668346,1779226243000,-166.66,0.00014384,2]
[422668349,1779226243000,-155.22131517,0.00014396,2]
[422668348,1779226243000,-20894.27234019,0.00014392,2]
[422668365,1779226243000,-500.0,0.00014469,2]
[422668351,1779226243000,-155.22131517,0.00014411,2]
[422668345,1779226243000,-155.22131517,0.00014381,2]
[422668352,1779226243000,-150.0,0.00014415,2]
[422668356,1779226243000,-155.22131517,0.00014441,2]
[422668354,1779226243000,-155.22131517,0.00014426,2]
[422668353,1779226243000,-150.0,0.00014424,2]
[422668358,1779226243000,-150.0,0.00014451,2]
[422668359,1779226243000,-155.22131517,0.00014456,2]
[422668357,1779226243000,-150.0,0.00014451,2]
[422668355,1779226243000,-150.0,0.00014434,2]
[422668360,1779226243000,-151.0,0.00014467,2]
[422668362,1779226243000,-500.0,0.00014469,2]
[422668361,1779226243000,-150.0,0.00014468,2]
[422668364,1779226243000,-500.0,0.00014469,2]
[422668312,1779226243000,-150.0,0.00014198,2]
[422668334,1779226243000,-500.0,0.00014318,2]
[422668332,1779226243000,-155.22131517,0.00014305,2]
[422668363,1779226243000,-606.24,0.00014469,2]
[422668331,1779226243000,-150.0,0.00014295,2]
[422668330,1779226243000,-155.22131517,0.0001429,2]
[422668304,1779226243000,-155.22131517,0.00014154,2]
[422668306,1779226243000,-150.0,0.00014166,2]
[422668309,1779226243000,-155.22131517,0.00014184,2]
[422668310,1779226243000,-150.0,0.00014187,2]
[422668314,1779226243000,-150.0,0.00014201,2]
[422668318,1779226243000,-150.0,0.00014237,2]
[422668324,1779226243000,-166.66,0.00014247,2]
[422668320,1779226243000,-150.0,0.00014237,2]
[422668326,1779226243000,-150.0,0.00014273,2]
[422668317,1779226243000,-150.0,0.00014237,2]
[422668321,1779226243000,-150.0,0.00014237,2]
[422668325,1779226243000,-155.22131517,0.0001426,2]
[422668307,1779226243000,-155.22131517,0.00014169,2]
[422668322,1779226243000,-150.0,0.00014237,2]
[422668337,1779226243000,-155.22131517,0.00014335,2]
[422668323,1779226243000,-155.22131517,0.00014245,2]
[422668339,1779226243000,-150.0,0.00014344,2]
[422668329,1779226243000,-150.0,0.00014287,2]
[422668336,1779226243000,-155.22131517,0.0001432,2]
[422668328,1779226243000,-150.0,0.00014276,2]
[422668338,1779226243000,-150.0,0.00014344,2]
[422668335,1779226243000,-150.0,0.0001432,2]
[422668316,1779226243000,-155.22131517,0.00014229,2]
[422668315,1779226243000,-155.22131517,0.00014214,2]
[422668319,1779226243000,-150.0,0.00014237,2]
[422668313,1779226243000,-155.22131517,0.00014199,2]
[422668327,1779226243000,-155.22131517,0.00014275,2]
[422668412,1779226244000,-150.0,0.00014671,2]
[422668411,1779226244000,-155.22131517,0.00014668,2]
[422668401,1779226244000,-500.0,0.0001464,2]
[422668408,1779226244000,-155.22131517,0.00014653,2]
[422668406,1779226244000,-150.0,0.0001464,2]
[422668399,1779226244000,-500.0,0.0001464,2]
[422668400,1779226244000,-500.0,0.0001464,2]
[422668398,1779226244000,-155.22131517,0.00014638,2]
[422668397,1779226244000,-150.0,0.00014629,2]
[422668404,1779226244000,-500.0,0.0001464,2]
[422668402,1779226244000,-500.0,0.0001464,2]
[422668403,1779226244000,-219.19886839,0.0001464,2]
[422668407,1779226244000,-150.0,0.00014653,2]
[422668405,1779226244000,-500.0,0.0001464,2]
[422668410,1779226244000,-150.0,0.00014665,2]
[422668421,1779226244000,-500.0,0.000147,5]
[422668413,1779226244000,-155.22131517,0.00014684,2]
[422668427,1779226244000,-403.0,0.00014738,2]
[422668420,1779226244000,-155.22131517,0.00014699,2]
[422668426,1779226244000,-150.0,0.00014737,2]
[422668425,1779226244000,-155.22131517,0.00014729,2]
[422668392,1779226244000,-150.0,0.00014594,2]
[422668423,1779226244000,-552.83,0.00014702,2]
[422668409,1779226244000,-150.0,0.00014665,2]
[422668390,1779226244000,-150.0,0.00014592,2]
[422668385,1779226244000,-155.22131517,0.00014562,2]
[422668395,1779226244000,-150.0,0.00014612,2]
[422668422,1779226244000,-150.0,0.00014701,2]
[422668367,1779226244000,-500.0,0.00014469,2]
[422668375,1779226244000,-155.22131517,0.00014502,2]
[422668366,1779226244000,-500.0,0.00014469,2]
[422668372,1779226244000,-150.0,0.00014487,2]
[422668369,1779226244000,-155.22131517,0.00014472,2]
[422668371,1779226244000,-150.0,0.00014487,2]
[422668374,1779226244000,-155.22131517,0.00014487,2]
[422668373,1779226244000,-150.0,0.00014487,2]
[422668386,1779226244000,-155.22131517,0.00014578,2]
[422668387,1779226244000,-150.0,0.00014583,2]
[422668376,1779226244000,-150.0,0.00014513,2]
[422668377,1779226244000,-155.22131517,0.00014517,2]
[422668378,1779226244000,-150.0,0.00014522,2]
[422668379,1779226244000,-150.0,0.00014525,2]
[422668380,1779226244000,-155.22131517,0.00014532,2]
[422668381,1779226244000,-155.22131517,0.00014547,2]
[422668383,1779226244000,-150.0,0.00014558,2]
[422668384,1779226244000,-150.0,0.00014558,2]
[422668382,1779226244000,-296.87312426,0.00014548,2]
[422668393,1779226244000,-155.22131517,0.00014608,2]
[422668394,1779226244000,-150.0,0.00014612,2]
[422668388,1779226244000,-150.0,0.00014587,2]
[422668391,1779226244000,-155.22131517,0.00014593,2]
[422668389,1779226244000,-500.0,0.00014592,2]
[422668396,1779226244000,-155.22131517,0.00014623,2]
[422668424,1779226244000,-155.22131517,0.00014714,2]
[422668432,1779226244000,-427.0,0.0001475,2]
[422668417,1779226244000,-827.12,0.00014691,2]
[422668458,1779226244000,-150.0,0.00014871,2]
[422668456,1779226244000,-155.22131517,0.00014865,2]
[422668455,1779226244000,-417.0,0.00014855,2]
[422668459,1779226244000,-150.0,0.00014879,2]
[422668469,1779226244000,-14271.0625745,0.000149,3]
[422668466,1779226244000,-1341.73540891,0.00014899,2]
[422668461,1779226244000,-155.22131517,0.0001488,2]
[422668471,1779226244000,-430.23839517,0.000149,2]
[422668464,1779226244000,-155.22131517,0.00014895,2]
[422668467,1779226244000,-5676.58636403,0.000149,3]
[422668463,1779226244000,-25000.0,0.00014891,3]
[422668452,1779226244000,-1252.0,0.00014838,2]
[422668472,1779226244000,-688.21448828,0.000149,2]
[422668462,1779226244000,-150.0,0.00014886,2]
[422668470,1779226244000,-500.0,0.000149,5]
[422668468,1779226244000,-296.87312426,0.000149,2]
[422668415,1779226244000,-150.0,0.00014687,2]
[422668473,1779226244000,-13446.21767843,0.000149,2]
[422668475,1779226244000,-150.0,0.00014907,2]
[422668480,1779226244000,-150.0,0.00014929,2]
[422668477,1779226244000,-155.22131517,0.00014911,2]
[422668479,1779226244000,-155.22131517,0.00014926,2]
[422668476,1779226244000,-290.93114458,0.00014908,2]
[422668478,1779226244000,-150.0,0.00014915,2]
[422668465,1779226244000,-449.0,0.00014896,2]
[422668460,1779226244000,-150.0,0.00014879,2]
[422668474,1779226244000,-20894.27234019,0.000149,2]
[422668451,1779226244000,-155.22131517,0.00014835,2]
[422668453,1779226244000,-150.0,0.00014844,2]
[422668418,1779226244000,-150.0,0.00014698,2]
[422668428,1779226244000,-288.57,0.00014743,2]
[422668438,1779226244000,-155.22131517,0.00014774,2]
[422668434,1779226244000,-150.0,0.00014756,2]
[422668435,1779226244000,-155.22131517,0.00014759,2]
[422668431,1779226244000,-150.0,0.0001475,2]
[422668437,1779226244000,-150.0,0.00014772,2]
[422668433,1779226244000,-4609.0,0.00014751,2]
[422668436,1779226244000,-150.0,0.00014772,2]
[422668430,1779226244000,-1152.0,0.00014746,2]
[422668440,1779226244000,-155.22131517,0.0001479,2]
[422668429,1779226244000,-155.22131517,0.00014744,2]
[422668442,1779226244000,-150.0,0.00014799,2]
[422668450,1779226244000,-411.63170782,0.00014832,2]
[422668441,1779226244000,-441.0,0.00014793,2]
[422668457,1779226244000,-500.0,0.00014866,2]
[422668447,1779226244000,-150.0,0.0001482,2]
[422668449,1779226244000,-150.0,0.00014829,2]
[422668454,1779226244000,-155.22131517,0.0001485,2]
[422668446,1779226244000,-150.0,0.00014813,2]
[422668448,1779226244000,-155.22131517,0.0001482,2]